Workbook

Sheet Proportion Tool
A3: SCC Paste vs. Aggregate Volumetric Proportioning Tool
D5: Paste | H5: Reference Mix | L5: Paste
D6: Volume [cf] | E6: Percent Paste Volume [%] | H6: Volume [cf] | I6: Percent Total Volume [cf] | L6: Volume [cf] | M6: Percent Paste Volume [%]
C8: Air | D8: 1.19 | E8: =D8/$D$20*100 -> 10.31338834 | F8: =D8/D35*100 -> 4.470591771 | G8: Paste | H8: =D20 -> 11.5384 | I8: =H8/$H$10*100 -> 43.3474589 | K8: Air | L8: =D8 -> 1.19 | M8: =L8/L20*100 -> 9.634896058 | O8: =100-F8 -> 95.52940823 | P8: =100-F8 -> 95.52940823
C9: Water | D9: 5.74 | E9: 49.74693198 | G9: Aggregate | H9: =D33 -> 15.08 | I9: =H9/$H$10*100 -> 56.6525411 | K9: Water | L9: =M9/100*$L$20 -> 6.19069439 | M9: =N9*$M$19 -> 50.12327477 | N9: =E9/$E$19 -> 0.5546751189 | O9: =I16/100*O8 -> 44.32564542 | P9: =I8/100*P8 -> 41.40957097
C10: Cement | D10: 3.5 | E10: 30.33349511 | G10: Total Volume (Yield) | H10: =SUM(D20,D33) -> 26.6184 | K10: Cement | L10: =M10/100*$L$20 -> 3.774813652 | M10: =N10*$M$19 -> 30.56297242 | N10: =E10/$E$19 -> 0.3382165359 | O10: =I17/100*O8 -> 51.20376281 | P10: =I9/100*P8 -> 54.11983726
C11: SCM 1 | D11: 1.05 | E11: 9.100048534 | K11: SCM 1 | L11: 1.132444096 | M11: 9.168891726 | N11: 0.1014649608 | O11: =100-SUM(O9:O10) -> 4.470591771
C12: SCM 2 | D12: 0 | E12: 0 | H12: New Mix | K12: SCM 2 | L12: 0 | M12: 0 | N12: 0
C13: SCM 3 | D13: 0 | E13: 0 | H13: Volume [cf] | I13: Percent Total Volume | K13: SCM 3 | L13: 0 | M13: 0 | N13: 0
C14: Admixture 1 | D14: 0.0062 | E14: 0.05373361991 | K14: Admixture 1 | L14: 0.006686812756 | M14: 0.05414012257 | N14: 0.000599126435
C15: Admixture 2 | D15: 0.0522 | E15: 0.4524024128 | K15: Admixture 2 | L15: 0.05629864933 | M15: 0.455824903 | N15: 0.00504425805
C16: Admixture 3 | D16: 0 | E16: 0 | G16: Paste | H16: =(I16/100)*H18 -> 12.3509376 | I16: =$I$24/10 -> 46.4 | K16: Admixture 3 | L16: 0 | M16: 0 | N16: 0
C17: Admixture 4 | D17: 0 | E17: 0 | G17: Aggregate | H17: =(I17/100)*H18 -> 14.2674624 | I17: =100-$I$25 -> 53.6 | K17: Admixture 4 | L17: 0 | M17: 0 | N17: 0
C18: Admixture 5 | D18: 0 | E18: 0 | G18: Total Volume (Yield) | H18: =H10 -> 26.6184 | K18: Admixture 5 | L18: 0 | M18: 0 | N18: 0
E19: =100-E8 -> 89.68661166 | M19: =100-M8 -> 90.36510394
C20: Total Paste | D20: =SUM(D8:D18) -> 11.5384 | E20: =SUM(E8:E17) -> 100 | K20: Total Paste | L20: =H16 -> 12.3509376 | M20: =SUM(M8:M18) -> 100
D22: Aggregate | L22: Aggregate
D23: Volume [cf] | E23: Percent Aggregate Volume [%] | H23: =IF(I16>I8,"Faster V-Funnel Time",IF(I16<I8,"Slower V-Funne Time","")) -> Faster V-Funnel Time | L23: Volume [cf] | M23: Percent Aggregate Volume [%]
H24: Scroll Value | I24: 464
H25: Scroll Paste Percentage | I25: =$I$24/10 -> 46.4
H26: Scroll Aggregate Percentage | I26: =100-$I$25 -> 53.6
C27: Aggregate 1 | D27: 8.61 | E27: =D27/$D$33*100 -> 57.09549072 | K27: Aggregate 1 | L27: =(M27/100)*$L$33 -> 8.14607767 | M27: =E27 -> 57.09549072
C28: Aggregate 2 | D28: 0 | E28: =D28/$D$33*100 -> 0 | K28: Aggregate 2 | L28: =(M28/100)*$L$33 -> 0 | M28: =E28 -> 0
C29: Aggregate 3 | D29: 0 | E29: =D29/$D$33*100 -> 0 | K29: Aggregate 3 | L29: =(M29/100)*$L$33 -> 0 | M29: =E29 -> 0
C30: Aggregate 4 | D30: 0 | E30: =D30/$D$33*100 -> 0 | K30: Aggregate 4 | L30: =(M30/100)*$L$33 -> 0 | M30: =E30 -> 0
C31: Aggregate 5 | D31: 6.47 | E31: =D31/$D$33*100 -> 42.90450928 | K31: Aggregate 5 | L31: =(M31/100)*$L$33 -> 6.12138473 | M31: =E31 -> 42.90450928
C33: Total Aggregate | D33: =SUM(D27:D31) -> 15.08 | E33: =SUM(E27:E31) -> 100 | K33: Total Aggregate | L33: =H17 -> 14.2674624 | M33: 100
C35: Total Volume (Yield) | D35: =SUM(D20,D33) -> 26.6184 | K35: Total Volume (Yield) | L35: =SUM(L20,L33) -> 26.6184

Sheet Combined Gradation
A3: Aggregate Volumetric Proportioning Tool
B6: Individual Aggregate Percent Passing | G6: Combined Gradation
B7: Aggregate 1 | C7: Aggregate 2 | D7: Aggregate 3 | E7: Aggregate 4 | F7: Aggregate 5 | G7: Percent Passing | H7: Percent Retained
A8: Material Name | B8: No. 67 | C8: No. 89 | F8: Sand
A10: ="Volumetric Percentage ("&ROUND(SUM(B10:F11),2)&"%)" -> Volumetric Percentage (100%) | B10: 58 | C10: 0 | D10: 0 | E10: 0 | F10: 42
I11: upper | J11: lower
A12: 1.5" | B12: 100 | C12: 100 | D12: 100 | E12: 100 | F12: 100 | G12: =((B12/100)*(B$10/100)+(C12/100)*(C$10/100)+(D12/100)*(D$10/100)+(E12/100)*(E$10/100)+(F12/100)*(F$10/100))*100 -> 100 | H12: =IF(SUM(B10,C10,D10,E10,F10)<>100,0,100-G12) -> 0 | I12: 0 | J12: -1
A13: 1.0" | B13: 100 | C13: 100 | D13: 100 | E13: 100 | F13: 100 | G13: =((B13/100)*(B$10/100)+(C13/100)*(C$10/100)+(D13/100)*(D$10/100)+(E13/100)*(E$10/100)+(F13/100)*(F$10/100))*100 -> 100 | H13: =G12-G13 -> 0 | I13: 1 | J13: -1
A14: 3/4" | B14: 98.8 | C14: 100 | D14: 100 | E14: 100 | F14: 100 | G14: 99.304 | H14: =G13-G14 -> 0.696 | I14: 2 | J14: -1
A15: 1/2" | B15: 63.5 | C15: 100 | D15: 100 | E15: 100 | F15: 100 | G15: 78.83 | H15: 20.474 | I15: 17.5 | J15: 10
A16: 3/8" | B16: 35.9 | C16: 86.04 | D16: 100 | E16: 100 | F16: 100 | G16: 62.822 | H16: 16.008 | I16: 17.5 | J16: 10
A17: #4 | B17: 4.9 | C17: 62.36 | D17: 98 | E17: 95.31 | F17: 99.9 | G17: 44.8 | H17: 18.022 | I17: 30 | J17: 23
A18: #8 | B18: 2.2 | C18: 15.99 | D18: 89 | E18: 77.84 | F18: 98.4 | G18: 42.604 | H18: 2.196 | I18: 20 | J18: 12.5
A19: #16 | B19: 0 | C19: 7.26 | D19: 79 | E19: 61.94 | F19: 87.5 | G19: 36.75 | H19: 5.854 | I19: 14 | J19: 6
A20: #30 | B20: 0 | C20: 2 | D20: 59 | E20: 42.12 | F20: 60.1 | G20: 25.242 | H20: 11.508 | I20: 13 | J20: 5
A21: #50 | B21: 0 | C21: 2 | D21: 18 | E21: 12.73 | F21: 26.6 | G21: 11.172 | H21: 14.07 | I21: 13 | J21: 5
A22: #100 | B22: 0 | C22: 1.58 | D22: 4 | E22: 1.39 | F22: 4 | G22: 1.68 | H22: 9.492 | I22: 7 | J22: 3
A23: #200 | B23: 0.8 | C23: 0.1 | D23: 1.6 | E23: 0.5 | F23: 0.25 | G23: 0.569 | H23: 1.111 | I23: 4 | J23: 0
B24: =SUM(B10:F11) -> 100

Sheet Volume Calculator
A3: Mix Design Volume Calculator
F6: Entrained / Entrapped Air | G6: 4.5 | H6: % Total Volume
F7: Entrained / Entrapped Air Volume = | G7: =G9-SUM(G13,G17,G21,G25,G29,G35,G39,G43,G47,G51,G55,G59,G63,G67,G71) -> 1.21451981
F9: ="Total Volume =" -> Total Volume = | G9: =SUM(G13,G17,G21,G25,G29,G35,G39,G43,G47,G51,G55,G59,G63,G67,G71)/(1-(G6/100)) -> 26.9893291 | H9: cf
F11: Water Volume | G11: 43 | H11: gal
A12: ="Water Mass = "&ROUND(G11,2)&"* 8.33 =" -> Water Mass = 43* 8.33 = | G12: =G11*8.33 -> 358.19 | H12: lb
A13: ="Water Volume ="&ROUND(G12,2)&"/(1.0*62.43) =" -> Water Volume =358.19/(1.0*62.43) = | G13: =G12/(62.43) -> 5.737465962 | H13: cf
F15: Cement Mass | G15: 688 | H15: lb
F16: Cement SG | G16: 3.15
F17: ="Cement Volume = "&ROUND(G15,2)&"/("&G16&"*62.43) =" -> Cement Volume = 688/(3.15*62.43) = | G17: =G15/(G16*62.43) -> 3.498521519 | H17: cf
F19: SCM1 Mass | G19: 206 | H19: lb
F20: SCM1 SG | G20: 2.27
F21: ="SCM1 Volume = "&ROUND(G19,2)&"/("&G20&"*62.43) =" -> SCM1 Volume = 206/(2.27*62.43) = | G21: =G19/(G20*62.43) -> 1.453610423 | H21: cf
F23: SCM2 Mass | G23: 0 | H23: lb
F24: SCM2 SG | G24: 3.15
F25: ="SCM2 Volume = "&ROUND(G23,2)&"/("&G24&"*62.43) =" -> SCM2 Volume = 0/(3.15*62.43) = | G25: =G23/(G24*62.43) -> 0 | H25: cf
F27: SCM3 Mass | G27: =-G270 -> 0 | H27: lb
F28: SCM3 SG | G28: 3.15
F29: ="SCM3 Volume = "&ROUND(G27,2)&"/("&G28&"*62.43) =" -> SCM3 Volume = 0/(3.15*62.43) = | G29: =G27/(G28*62.43) -> 0 | H29: cf
F31: ="cwt = "&"" -> cwt = | G31: =SUM(G15,G19,G23,G27)/100 -> 8.94
F33: Admixture 1 Dose = | G33: 0 | H33: fl oz/cwt
F34: ="Admixture 1 Volume = "&ROUND(G33,2)&" * "&$G$31&" =" -> Admixture 1 Volume = 0 * 8.94 = | G34: =G33*$G$31 -> 0 | H34: fl oz
F35: ="Admixture 1 Volume = "&G34&" [fl oz] * 0.00104438 [cf / fl oz] =" -> Admixture 1 Volume = 0 [fl oz] * 0.00104438 [cf / fl oz] = | G35: =G34*0.00104438 -> 0 | H35: cf
F37: Admixture 1 Dose = | G37: 0 | H37: fl oz/cwt
F38: ="Admixture 1 Volume = "&ROUND(G37,2)&" * "&$G$31&" =" -> Admixture 1 Volume = 0 * 8.94 = | G38: =G37*$G$31 -> 0 | H38: fl oz
F39: ="Admixture 1 Volume = "&G38&" [fl oz] * 0.00104438 [cf / fl oz] =" -> Admixture 1 Volume = 0 [fl oz] * 0.00104438 [cf / fl oz] = | G39: =G38*0.00104438 -> 0 | H39: cf
F41: Admixture 1 Dose = | G41: 0 | H41: fl oz/cwt
F42: ="Admixture 1 Volume = "&ROUND(G41,2)&" * "&$G$31&" =" -> Admixture 1 Volume = 0 * 8.94 = | G42: =G41*$G$31 -> 0 | H42: fl oz
F43: ="Admixture 1 Volume = "&G42&" [fl oz] * 0.00104438 [cf / fl oz] =" -> Admixture 1 Volume = 0 [fl oz] * 0.00104438 [cf / fl oz] = | G43: =G42*0.00104438 -> 0 | H43: cf
F45: Admixture 1 Dose = | G45: 0 | H45: fl oz/cwt
F46: ="Admixture 1 Volume = "&ROUND(G45,2)&" * "&$G$31&" =" -> Admixture 1 Volume = 0 * 8.94 = | G46: =G45*$G$31 -> 0 | H46: fl oz
F47: ="Admixture 1 Volume = "&G46&" [fl oz] * 0.00104438 [cf / fl oz] =" -> Admixture 1 Volume = 0 [fl oz] * 0.00104438 [cf / fl oz] = | G47: =G46*0.00104438 -> 0 | H47: cf
F49: Admixture 1 Dose = | G49: 0 | H49: fl oz/cwt
F50: ="Admixture 1 Volume = "&ROUND(G49,2)&" * "&$G$31&" =" -> Admixture 1 Volume = 0 * 8.94 = | G50: =G49*$G$31 -> 0 | H50: fl oz
F51: ="Admixture 1 Volume = "&G50&" [fl oz] * 0.00104438 [cf / fl oz] =" -> Admixture 1 Volume = 0 [fl oz] * 0.00104438 [cf / fl oz] = | G51: =G50*0.00104438 -> 0 | H51: cf
F53: Aggregate 1 Mass | G53: 1500 | H53: lb
F54: Aggregate 1 SG | G54: 2.79
F55: ="Aggregate 1 Volume = "&ROUND(G53,2)&"/("&G54&"*62.43) =" -> Aggregate 1 Volume = 1500/(2.79*62.43) = | G55: =G53/(G54*62.43) -> 8.611795749 | H55: cf
F57: Aggregate 2 Mass | G57: 0 | H57: lb
F58: Aggregate 2 SG | G58: 2.71
F59: ="Aggregate 2 Volume = "&ROUND(G57,2)&"/("&G58&"*62.43) =" -> Aggregate 2 Volume = 0/(2.71*62.43) = | G59: =G57/(G58*62.43) -> 0 | H59: cf
F61: Aggregate 3 Mass | G61: 0 | H61: lb
F62: Aggregate 3 SG | G62: 2.64
F63: ="Aggregate 3 Volume = "&ROUND(G61,2)&"/("&G62&"*62.43) =" -> Aggregate 3 Volume = 0/(2.64*62.43) = | G63: =G61/(G62*62.43) -> 0 | H63: cf
F65: Aggregate 4 Mass | G65: 0 | H65: lb
F66: Aggregate 4 SG | G66: 2.61
F67: ="Aggregate 4 Volume = "&ROUND(G65,2)&"/("&G66&"*62.43) =" -> Aggregate 4 Volume = 0/(2.61*62.43) = | G67: =G65/(G66*62.43) -> 0 | H67: cf
F69: Aggregate 5 Mass | G69: 1075 | H69: lb
F70: Aggregate 5 SG | G70: 2.66
F71: ="Aggregate 5 Volume = "&ROUND(G69,2)&"/("&G70&"*62.43) =" -> Aggregate 5 Volume = 1075/(2.66*62.43) = | G71: =G69/(G70*62.43) -> 6.473415639 | H71: cf
